[Event "23rd ETCC Women 2021"]
[Site "Catez"]
[Date "2021.11.19"]
[Round "6.19"]
[White "Klek, Hanna Marie"]
[Black "Gaal, Zsoka"]
[Result "1/2-1/2"]
[ECO "B12"]
[WhiteElo "2343"]
[BlackElo "2336"]
[Annotator "ChessBase"]
[PlyCount "221"]
[EventDate "2021.11.08"]
[EventType "team-tourn"]
[EventCountry "SLO"]
[WhiteTeam "Germany"]
[BlackTeam "Hungary"]
[WhiteTeamCountry "GER"]
[BlackTeamCountry "HUN"]
[TimeControl "40/5400+30:1800+30"]

1. e4 {[%emt 0:00:03]} c6 {[%emt 0:00:15]} 2. d4 {[%emt 0:00:04]} d5 {[%emt 0:
00:05]} 3. e5 {[%emt 0:00:05]} c5 {[%emt 0:00:06]} 4. dxc5 {[%emt 0:00:06]} e6
{[%emt 0:00:06]} 5. Nf3 {[%emt 0:01:17]} Bxc5 {[%emt 0:00:11]} 6. Bd3 {[%emt 0:
00:17]} Ne7 {[%emt 0:00:07]} 7. O-O {[%emt 0:05:25]} Ng6 {[%emt 0:00:06]} 8.
Qe2 {[%emt 0:01:26]} O-O {[%emt 0:01:13]} 9. c3 {[%emt 0:06:57]} Nd7 {[%emt 0:
16:03]} 10. b4 {[%emt 0:11:06]} Be7 {[%emt 0:00:13]} 11. Na3 {[%emt 0:12:16]}
a5 {[%emt 0:07:00]} 12. Nc2 {[%emt 0:03:24]} Qc7 {[%emt 0:06:35]} 13. Bxg6 {
[%emt 0:00:42]} fxg6 {[%emt 0:00:49]} 14. Ncd4 {[%emt 0:01:32]} Nb6 {[%emt 0:
08:18]} 15. Bg5 {[%emt 0:10:06]} Bxg5 {[%emt 0:07:17]} 16. Nxg5 {[%emt 0:00:07]
} Qe7 {[%emt 0:02:11]} 17. f4 {[%emt 0:07:43]} h6 {[%emt 0:11:26]} 18. Nh3 {
[%emt 0:01:22]} axb4 {[%emt 0:01:16]} 19. Rf3 {[%emt 0:08:33]} bxc3 {[%emt 0:
01:44]} 20. Rxc3 {[%emt 0:02:21]} Nc4 {[%emt 0:11:01]} 21. Rg3 {[%emt 0:01:02]}
Qf7 {[%emt 0:03:13]} 22. Rb1 {[%emt 0:02:02]} b6 {[%emt 0:03:59]} 23. Nf3 {
[%emt 0:04:58]} Ba6 {[%emt 0:08:38]} 24. Qe1 {[%emt 0:01:31]} Bb7 {[%emt 0:03:
50]} 25. Nh4 {[%emt 0:00:58]} Rxa2 {[%emt 0:00:30]} 26. Rxg6 {[%emt 0:00:19]}
d4 {[%emt 0:00:55]} 27. f5 {[%emt 0:02:41]} exf5 {[%emt 0:01:14]} 28. Nf4 {
[%emt 0:00:18]} Be4 {[%emt 0:01:41]} 29. e6 {[%emt 0:01:38]} Qe8 {[%emt 0:03:
55]} 30. Ra1 {[%emt 0:06:09]} Rxa1 {[%emt 0:00:24]} 31. Qxa1 {[%emt 0:00:01]}
Ne5 {[%emt 0:00:37]} 32. Qxd4 {[%emt 0:01:55]} Nxg6 {[%emt 0:00:14]} 33. Nhxg6
{[%emt 0:00:51]} Rf6 {[%emt 0:00:49]} 34. Ne5 {[%emt 0:04:07]} Rxe6 {[%emt 0:
00:34]} 35. Qc4 {[%emt 0:00:45]} b5 {[%emt 0:00:46]} 36. Qxe6+ {[%emt 0:00:41]}
Qxe6 {[%emt 0:00:01]} 37. Nxe6 {[%emt 0:00:06]} b4 {[%emt 0:00:40]} 38. Nc5 {
[%emt 0:00:33]} Bd5 {[%emt 0:00:36]} 39. Kf2 {[%emt 0:00:44]} Kf8 {[%emt 0:00:
28]} 40. g3 {[%emt 0:00:33]} Ke7 {[%emt 0:00:33]} 41. Ke3 {[%emt 0:08:21]} Kd6
{[%emt 0:02:11]} 42. Kd4 {[%emt 0:00:33]} b3 {[%emt 0:09:24]} 43. Na4 {[%emt 0:
08:47]} g5 {[%emt 0:03:03]} 44. Nc3 {[%emt 0:01:00]} Bg8 {[%emt 0:04:38]} 45.
Nd3 {[%emt 0:02:34]} Bh7 {[%emt 0:05:32]} 46. Nd1 {[%emt 0:12:20]} Ke6 {
[%emt 0:03:20]} 47. Nc5+ {[%emt 0:00:35]} Kf6 {[%emt 0:00:27]} 48. Nxb3 {
[%emt 0:00:19]} f4 {[%emt 0:00:36]} 49. Nd2 {[%emt 0:00:52]} Kf5 {[%emt 0:01:
47]} 50. Nf2 {[%emt 0:00:44]} h5 {[%emt 0:01:43]} 51. Nc4 {[%emt 0:01:13]} fxg3
{[%emt 0:02:50]} 52. hxg3 {[%emt 0:00:16]} Bg8 {[%emt 0:00:41]} 53. Ne3+ {
[%emt 0:00:15]} Kf6 {[%emt 0:00:28]} 54. Ne4+ {[%emt 0:00:29]} Kg6 {[%emt 0:00:
04]} 55. Ke5 {[%emt 0:00:29]} Bb3 {[%emt 0:00:40]} 56. Nf2 {[%emt 0:00:32]} Ba4
{[%emt 0:00:27]} 57. Nd5 {[%emt 0:00:38]} h4 {[%emt 0:00:41]} 58. g4 {[%emt 0:
00:16]} h3 {[%emt 0:00:13]} 59. Nxh3 {[%emt 0:00:50]} Bd1 {[%emt 0:00:14]} 60.
Nf2 {[%emt 0:00:16]} Bxg4 {[%emt 0:00:06]} 61. Nxg4 {[%emt 0:00:13]} Kh5 {
[%emt 0:00:46]} 62. Ndf6+ {[%emt 0:00:32]} Kh4 {[%emt 0:00:33]} 63. Ke4 {
[%emt 0:00:19]} Kg3 {[%emt 0:00:19]} 64. Ke3 {[%emt 0:00:12]} Kg2 {[%emt 0:00:
46]} 65. Ne4 {[%emt 0:00:47]} Kh3 {[%emt 0:00:25]} 66. Kf3 {[%emt 0:00:52]} Kh4
{[%emt 0:00:01]} 67. Ng3 {[%emt 0:01:36]} Kh3 {[%emt 0:00:02]} 68. Nh5 {
[%emt 0:00:48]} Kh4 {[%emt 0:00:04]} 69. Nhf6 {[%emt 0:00:42]} Kh3 {[%emt 0:00:
01]} 70. Nf2+ {[%emt 0:00:40]} Kh4 {[%emt 0:00:09]} 71. N6g4 {[%emt 0:00:04]}
Kh5 {[%emt 0:00:05]} 72. Kg3 {[%emt 0:00:09]} Kg6 {[%emt 0:00:06]} 73. Nd3 {
[%emt 0:00:12]} Kf5 {[%emt 0:00:19]} 74. Kf3 {[%emt 0:00:14]} Ke6 {[%emt 0:02:
18]} 75. Ke4 {[%emt 0:00:06]} Kd6 {[%emt 0:00:03]} 76. Nb4 {[%emt 0:01:11]} Kc5
{[%emt 0:00:07]} 77. Nd5 {[%emt 0:00:04]} Kd6 {[%emt 0:00:15]} 78. Kd4 {
[%emt 0:00:08]} Ke6 {[%emt 0:00:21]} 79. Nde3 {[%emt 0:00:09]} Kd6 {[%emt 0:01:
20]} 80. Nf5+ {[%emt 0:00:21]} Kc6 {[%emt 0:00:54]} 81. Kc4 {[%emt 0:00:11]}
Kb6 {[%emt 0:00:14]} 82. Nd4 {[%emt 0:00:11]} Kc7 {[%emt 0:01:31]} 83. Kc5 {
[%emt 0:00:12]} Kd7 {[%emt 0:00:05]} 84. Nb5 {[%emt 0:00:48]} Ke7 {[%emt 0:00:
45]} 85. Nd6 {[%emt 0:00:19]} Kf8 {[%emt 0:00:31]} 86. Nf5 {[%emt 0:00:38]} Kf7
{[%emt 0:00:13]} 87. Kd6 {[%emt 0:00:12]} Kg6 {[%emt 0:00:16]} 88. Ng3 {
[%emt 0:00:08]} Kf7 {[%emt 0:00:10]} 89. Kd7 {[%emt 0:00:08]} Kf8 {[%emt 0:00:
49]} 90. Nh5 {[%emt 0:00:31]} Kf7 {[%emt 0:00:20]} 91. Nhf6 {[%emt 0:00:07]}
Kg7 {[%emt 0:01:05]} 92. Ke7 {[%emt 0:00:20]} Kg6 {[%emt 0:00:05]} 93. Ke6 {
[%emt 0:00:07]} Kg7 {[%emt 0:00:05]} 94. Nh5+ {[%emt 0:04:10]} Kf8 {[%emt 0:01:
49]} 95. Ng3 {[%emt 0:01:05]} Ke8 {[%emt 0:00:42]} 96. Nf5 {[%emt 0:00:17]} Kd8
{[%emt 0:00:28]} 97. Kd6 {[%emt 0:00:08]} Ke8 {[%emt 0:00:27]} 98. Ne7 {
[%emt 0:00:17]} Kd8 {[%emt 0:01:00]} 99. Nc6+ {[%emt 0:00:31]} Kc8 {[%emt 0:00:
25]} 100. Na5 {[%emt 0:00:07]} Kd8 {[%emt 0:00:09]} 101. Nb7+ {[%emt 0:00:05]}
Ke8 {[%emt 0:00:51]} 102. Ke6 {[%emt 0:00:06]} Kf8 {[%emt 0:00:05]} 103. Nd6 {
[%emt 0:00:09]} Kg7 {[%emt 0:00:05]} 104. Kf5 {[%emt 0:00:12]} Kf8 {[%emt 0:00:
46]} 105. Kf6 {[%emt 0:00:06]} Kg8 {[%emt 0:00:03]} 106. Nf5 {[%emt 0:01:43]}
Kf8 {[%emt 0:00:25]} 107. Ng7 {[%emt 0:00:05]} Kg8 {[%emt 0:00:02]} 108. Ne6 {
[%emt 0:00:10]} Kh8 {[%emt 0:01:57]} 109. Kf7 {[%emt 0:00:19]} Kh7 {[%emt 0:00:
05]} 110. Nf8+ {[%emt 0:00:06]} Kh8 {[%emt 0:00:04]} 111. Ne5 {[%emt 0:00:05]}
1/2-1/2

[Event "23rd ETCC Women 2021"]
[Site "Catez"]
[Date "2021.11.19"]
[Round "6.20"]
[White "Terbe, Julianna"]
[Black "Lubbe, Melanie"]
[Result "1-0"]
[ECO "A46"]
[WhiteElo "2318"]
[BlackElo "2311"]
[Annotator "ChessBase"]
[PlyCount "65"]
[EventDate "2021.11.08"]
[EventType "team-tourn"]
[EventCountry "SLO"]
[WhiteTeam "Hungary"]
[BlackTeam "Germany"]
[WhiteTeamCountry "HUN"]
[BlackTeamCountry "GER"]
[TimeControl "40/5400+30:1800+30"]

1. d4 {[%emt 0:00:03]} Nf6 {[%emt 0:00:07]} 2. Nf3 {[%emt 0:00:05]} e6 {
[%emt 0:00:16]} 3. Bf4 {[%emt 0:01:17]} c5 {[%emt 0:00:16]} 4. e3 {[%emt 0:00:
09]} cxd4 {[%emt 0:00:16]} 5. exd4 {[%emt 0:00:06]} b6 {[%emt 0:00:33]} 6. Nbd2
{[%emt 0:01:31]} Be7 {[%emt 0:01:52]} 7. h3 {[%emt 0:00:39]} O-O {[%emt 0:02:
33]} 8. c3 {[%emt 0:01:23]} d6 {[%emt 0:05:34]} 9. Bb5 {[%emt 0:08:11]} Bb7 {
[%emt 0:09:26]} 10. O-O {[%emt 0:00:42]} Nbd7 {[%emt 0:03:12]} 11. Re1 {
[%emt 0:02:55]} Re8 {[%emt 0:04:57]} 12. a4 {[%emt 0:02:43]} a6 {[%emt 0:00:56]
} 13. Bf1 {[%emt 0:06:17]} Bf8 {[%emt 0:04:33]} 14. Bh2 {[%emt 0:03:26]} Qc7 {
[%emt 0:10:21]} 15. Qb3 {[%emt 0:03:54]} Bc6 {[%emt 0:06:08]} 16. Ng5 {[%emt 0:
13:53]} Qb7 {[%emt 0:08:22]} 17. f3 {[%emt 0:03:40]} b5 {[%emt 0:06:24]} 18.
axb5 {[%emt 0:00:39]} axb5 {[%emt 0:00:06]} 19. Rxa8 {[%emt 0:12:55]} Rxa8 {
[%emt 0:00:05]} 20. Nxf7 {[%emt 0:03:48]} Bd5 {[%emt 0:05:21]} 21. c4 {[%emt 0:
00:05]} Kxf7 {[%emt 0:06:54]} 22. cxd5 {[%emt 0:00:14]} Nxd5 {[%emt 0:02:04]}
23. Ne4 {[%emt 0:02:17]} Kg8 {[%emt 0:05:16]} 24. Ng5 {[%emt 0:08:01]} e5 {
[%emt 0:11:55]} 25. Qxb5 {[%emt 0:03:25]} Rb8 {[%emt 0:03:05]} 26. Qxb7 {
[%emt 0:01:20]} Rxb7 {[%emt 0:00:01]} 27. dxe5 {[%emt 0:00:07]} dxe5 {[%emt 0:
00:25]} 28. Bc4 {[%emt 0:00:47]} N7b6 {[%emt 0:00:12]} 29. Bb3 {[%emt 0:04:11]}
Bc5+ {[%emt 0:00:29]} 30. Kh1 {[%emt 0:00:19]} h6 {[%emt 0:01:14]} 31. Ne6 {
[%emt 0:02:44]} Bb4 {[%emt 0:01:47]} 32. Rxe5 {[%emt 0:00:48]} Rd7 {[%emt 0:01:
07]} 33. Nf4 {[%emt 0:01:27]} 1-0

[Event "23rd ETCC Women 2021"]
[Site "Catez"]
[Date "2021.11.19"]
[Round "6.22"]
[White "Baginskaite, Kamile"]
[Black "Hagarova, Zuzana"]
[Result "1/2-1/2"]
[ECO "A39"]
[WhiteElo "2100"]
[BlackElo "2292"]
[Annotator "ChessBase"]
[PlyCount "218"]
[EventDate "2021.11.08"]
[EventType "team-tourn"]
[EventCountry "SLO"]
[WhiteTeam "Lithuania"]
[BlackTeam "Slovakia"]
[WhiteTeamCountry "LTU"]
[BlackTeamCountry "SVK"]
[TimeControl "40/5400+30:1800+30"]

1. d4 {[%emt 0:00:02]} Nf6 {[%emt 0:00:10]} 2. c4 {[%emt 0:00:16]} g6 {[%emt 0:
00:11]} 3. Nf3 {[%emt 0:00:11]} Bg7 {[%emt 0:00:14]} 4. g3 {[%emt 0:00:10]} O-O
{[%emt 0:00:27]} 5. Bg2 {[%emt 0:03:52]} c5 {[%emt 0:01:29]} 6. O-O {[%emt 0:
05:05]} cxd4 {[%emt 0:03:57]} 7. Nxd4 {[%emt 0:02:49]} Nc6 {[%emt 0:00:15]} 8.
Nc3 {[%emt 0:00:48]} Nxd4 {[%emt 0:01:14]} 9. Qxd4 {[%emt 0:00:07]} d6 {
[%emt 0:00:12]} 10. Qd3 {[%emt 0:05:27]} a6 {[%emt 0:05:07]} 11. Bd2 {[%emt 0:
22:50]} Bf5 {[%emt 0:04:33]} 12. e4 {[%emt 0:12:12]} Be6 {[%emt 0:01:03]} 13.
b3 {[%emt 0:02:56]} Rb8 {[%emt 0:12:44]} 14. Rac1 {[%emt 0:00:08]} Nd7 {
[%emt 0:06:07]} 15. Rfd1 {[%emt 0:02:07]} Ne5 {[%emt 0:06:11]} 16. Qe2 {
[%emt 0:00:36]} Qd7 {[%emt 0:10:55]} 17. Nd5 {[%emt 0:03:34]} b5 {[%emt 0:06:
11]} 18. cxb5 {[%emt 0:04:36]} Bxd5 {[%emt 0:01:11]} 19. exd5 {[%emt 0:00:12]}
axb5 {[%emt 0:00:19]} 20. h3 {[%emt 0:08:39]} Qd8 {[%emt 0:08:51]} 21. Bb4 {
[%emt 0:00:55]} Re8 {[%emt 0:10:54]} 22. f4 {[%emt 0:02:18]} Nd7 {[%emt 0:00:
27]} 23. Rc6 {[%emt 0:00:13]} Ra8 {[%emt 0:04:26]} 24. Rd2 {[%emt 0:01:22]} Qb8
{[%emt 0:00:16]} 25. Kh2 {[%emt 0:00:41]} Ra7 {[%emt 0:02:58]} 26. Bf1 {
[%emt 0:02:52]} Rb7 {[%emt 0:01:01]} 27. Qd1 {[%emt 0:01:15]} Nf6 {[%emt 0:05:
28]} 28. Bg2 {[%emt 0:00:33]} h5 {[%emt 0:01:15]} 29. Rdc2 {[%emt 0:01:06]} Qa7
{[%emt 0:00:24]} 30. Qg1 {[%emt 0:03:59]} Qa8 {[%emt 0:02:29]} 31. Qc1 {
[%emt 0:00:22]} Kh7 {[%emt 0:00:13]} 32. Bf3 {[%emt 0:02:56]} Qa7 {[%emt 0:01:
31]} 33. Qg1 {[%emt 0:00:26]} Ra8 {[%emt 0:01:26]} 34. Qxa7 {[%emt 0:03:09]}
Rbxa7 {[%emt 0:02:16]} 35. a3 {[%emt 0:00:14]} Rxa3 {[%emt 0:00:37]} 36. Bxa3 {
[%emt 0:03:33]} Rxa3 {[%emt 0:00:03]} 37. R2c3 {[%emt 0:01:51]} Ra2+ {[%emt 0:
00:15]} 38. Kh1 {[%emt 0:00:52]} Ra1+ {[%emt 0:00:22]} 39. Kg2 {[%emt 0:00:26]}
Ra2+ {[%emt 0:00:30]} 40. Rc2 {[%emt 0:00:48]} Ra3 {[%emt 0:00:56]} 41. Rc7 {
[%emt 0:13:23]} Ng8 {[%emt 0:05:51]} 42. b4 {[%emt 0:05:45]} Rb3 {[%emt 0:01:
12]} 43. Rb7 {[%emt 0:00:07]} Rxb4 {[%emt 0:01:10]} 44. Be2 {[%emt 0:00:04]} h4
{[%emt 0:02:14]} 45. Rxb5 {[%emt 0:00:26]} Rd4 {[%emt 0:00:47]} 46. g4 {
[%emt 0:02:43]} Nf6 {[%emt 0:11:55]} 47. Bf3 {[%emt 0:00:13]} Rxf4 {[%emt 0:00:
37]} 48. Re2 {[%emt 0:01:23]} Ng8 {[%emt 0:01:53]} 49. Re4 {[%emt 0:00:24]}
Rxe4 {[%emt 0:00:59]} 50. Bxe4 {[%emt 0:00:05]} Bf6 {[%emt 0:00:26]} 51. Kf3 {
[%emt 0:01:50]} Bg5 {[%emt 0:00:12]} 52. Rb7 {[%emt 0:00:50]} Kg7 {[%emt 0:00:
17]} 53. Rb8 {[%emt 0:00:59]} Nf6 {[%emt 0:01:20]} 54. Rb7 {[%emt 0:00:18]} Nh7
{[%emt 0:01:23]} 55. Rb8 {[%emt 0:00:38]} Bf6 {[%emt 0:00:26]} 56. Kg2 {
[%emt 0:00:31]} Ng5 {[%emt 0:01:51]} 57. Bf3 {[%emt 0:00:01]} Be5 {[%emt 0:00:
30]} 58. Rb1 {[%emt 0:06:43]} Kf6 {[%emt 0:04:00]} 59. Re1 {[%emt 0:00:32]} e6
{[%emt 0:00:19]} 60. Re2 {[%emt 0:00:50]} Nxf3 {[%emt 0:00:30]} 61. Kxf3 {
[%emt 0:00:04]} exd5 {[%emt 0:00:09]} 62. Ra2 {[%emt 0:01:18]} Ke6 {[%emt 0:02:
19]} 63. Ra5 {[%emt 0:00:13]} d4 {[%emt 0:01:06]} 64. Ke4 {[%emt 0:00:37]} f5+
{[%emt 0:00:23]} 65. gxf5+ {[%emt 0:00:04]} gxf5+ {[%emt 0:00:03]} 66. Kd3 {
[%emt 0:00:13]} Kf6 {[%emt 0:00:20]} 67. Ke2 {[%emt 0:02:12]} Kg5 {[%emt 0:00:
42]} 68. Kf3 {[%emt 0:00:24]} Kf6 {[%emt 0:00:08]} 69. Rb5 {[%emt 0:00:58]} Ke6
{[%emt 0:00:12]} 70. Ke2 {[%emt 0:00:48]} Bf4 {[%emt 0:01:29]} 71. Ra5 {
[%emt 0:00:55]} Be3 {[%emt 0:00:29]} 72. Rb5 {[%emt 0:00:02]} d5 {[%emt 0:00:
59]} 73. Kf3 {[%emt 0:00:46]} Bg5 {[%emt 0:00:35]} 74. Rb3 {[%emt 0:00:48]} Ke5
{[%emt 0:00:18]} 75. Rd3 {[%emt 0:00:15]} Bh6 {[%emt 0:00:57]} 76. Rb3 {
[%emt 0:00:05]} Be3 {[%emt 0:00:17]} 77. Ra3 {[%emt 0:00:26]} Kd6 {[%emt 0:00:
44]} 78. Ra5 {[%emt 0:00:36]} Bg5 {[%emt 0:00:16]} 79. Ra6+ {[%emt 0:01:19]}
Ke5 {[%emt 0:00:14]} 80. Ra3 {[%emt 0:00:15]} Bd2 {[%emt 0:00:22]} 81. Rb3 {
[%emt 0:00:19]} Be1 {[%emt 0:01:04]} 82. Rb1 {[%emt 0:00:26]} Bg3 {[%emt 0:00:
19]} 83. Rb3 {[%emt 0:00:07]} Kd6 {[%emt 0:00:37]} 84. Rb5 {[%emt 0:01:20]} Kc6
{[%emt 0:00:25]} 85. Rb3 {[%emt 0:00:58]} Kc5 {[%emt 0:00:16]} 86. Ke2 {
[%emt 0:00:33]} Kc4 {[%emt 0:00:51]} 87. Rf3 {[%emt 0:00:01]} f4 {[%emt 0:00:
43]} 88. Ra3 {[%emt 0:00:19]} Bh2 {[%emt 0:00:15]} 89. Ra4+ {[%emt 0:00:14]}
Kc3 {[%emt 0:00:14]} 90. Ra3+ {[%emt 0:00:15]} Kc2 {[%emt 0:01:03]} 91. Ra2+ {
[%emt 0:00:44]} Kb3 {[%emt 0:00:15]} 92. Ra5 {[%emt 0:00:55]} Kc4 {[%emt 0:00:
40]} 93. Ra4+ {[%emt 0:00:07]} Kc3 {[%emt 0:00:08]} 94. Ra3+ {[%emt 0:00:07]}
Kb4 {[%emt 0:00:05]} 95. Ra1 {[%emt 0:01:02]} Bg3 {[%emt 0:01:09]} 96. Rb1+ {
[%emt 0:00:05]} Kc3 {[%emt 0:00:48]} 97. Rc1+ {[%emt 0:00:05]} Kb4 {[%emt 0:00:
27]} 98. Rc8 {[%emt 0:00:29]} d3+ {[%emt 0:00:30]} 99. Kxd3 {[%emt 0:00:13]} f3
{[%emt 0:00:07]} 100. Rf8 {[%emt 0:03:45]} f2 {[%emt 0:00:07]} 101. Kd4 {
[%emt 0:00:15]} Kb3 {[%emt 0:00:20]} 102. Kxd5 {[%emt 0:00:30]} Kc3 {[%emt 0:
00:16]} 103. Ke4 {[%emt 0:00:04]} Kd2 {[%emt 0:00:08]} 104. Rxf2+ {[%emt 0:00:
11]} Bxf2 {[%emt 0:00:29]} 105. Kf3 {[%emt 0:00:04]} Ke1 {[%emt 0:00:35]} 106.
Kg2 {[%emt 0:00:05]} Ke2 {[%emt 0:00:34]} 107. Kh1 {[%emt 0:00:13]} Kf1 {
[%emt 0:00:26]} 108. Kh2 {[%emt 0:00:05]} Bg3+ {[%emt 0:00:26]} 109. Kh1 {
[%emt 0:00:06]} Bf4 {[%emt 0:00:05]} 1/2-1/2

[Event "23rd ETCC Women 2021"]
[Site "Catez"]
[Date "2021.11.19"]
[Round "6.23"]
[White "Sucikova, Svetlana"]
[Black "Simkunaite, Gabija"]
[Result "0-1"]
[ECO "A12"]
[WhiteElo "2197"]
[BlackElo "1962"]
[Annotator "ChessBase"]
[PlyCount "92"]
[EventDate "2021.11.08"]
[EventType "team-tourn"]
[EventCountry "SLO"]
[WhiteTeam "Slovakia"]
[BlackTeam "Lithuania"]
[WhiteTeamCountry "SVK"]
[BlackTeamCountry "LTU"]
[TimeControl "40/5400+30:1800+30"]

1. Nf3 {[%emt 0:00:43]} d5 {[%emt 0:00:11]} 2. e3 {[%emt 0:00:50]} Nf6 {
[%emt 0:00:37]} 3. c4 {[%emt 0:00:40]} c6 {[%emt 0:00:12]} 4. b3 {[%emt 0:00:
50]} Bf5 {[%emt 0:03:26]} 5. Bb2 {[%emt 0:00:59]} e6 {[%emt 0:01:39]} 6. Be2 {
[%emt 0:00:59]} Bd6 {[%emt 0:00:59]} 7. O-O {[%emt 0:00:59]} O-O {[%emt 0:00:
25]} 8. Nh4 {[%emt 0:06:57]} Bxb1 {[%emt 0:11:56]} 9. Rxb1 {[%emt 0:02:36]} Ne4
{[%emt 0:01:47]} 10. Nf3 {[%emt 0:07:54]} Nd7 {[%emt 0:02:25]} 11. Bd3 {
[%emt 0:04:11]} e5 {[%emt 0:08:12]} 12. Rc1 {[%emt 0:03:31]} f5 {[%emt 0:03:52]
} 13. Bb1 {[%emt 0:01:58]} Ng5 {[%emt 0:01:50]} 14. cxd5 {[%emt 0:15:57]} Nxf3+
{[%emt 0:02:37]} 15. Qxf3 {[%emt 0:04:57]} e4 {[%emt 0:00:05]} 16. Qh5 {
[%emt 0:14:33]} cxd5 {[%emt 0:01:58]} 17. f3 {[%emt 0:07:15]} Be5 {[%emt 0:09:
07]} 18. Bxe5 {[%emt 0:04:39]} Nxe5 {[%emt 0:01:04]} 19. fxe4 {[%emt 0:05:19]}
g6 {[%emt 0:02:00]} 20. Qe2 {[%emt 0:01:20]} dxe4 {[%emt 0:01:27]} 21. Qb5 {
[%emt 0:00:15]} Qd6 {[%emt 0:02:32]} 22. Qxb7 {[%emt 0:06:42]} Ng4 {[%emt 0:02:
46]} 23. Qc7 {[%emt 0:02:30]} Qxd2 {[%emt 0:00:44]} 24. Rc2 {[%emt 0:04:39]}
Qxe3+ {[%emt 0:01:00]} 25. Kh1 {[%emt 0:00:02]} Rf7 {[%emt 0:01:18]} 26. Qd6 {
[%emt 0:01:08]} Qb6 {[%emt 0:07:40]} 27. Qxb6 {[%emt 0:00:45]} axb6 {[%emt 0:
00:06]} 28. Rc6 {[%emt 0:00:23]} Rf6 {[%emt 0:01:49]} 29. Bxe4 {[%emt 0:00:44]}
Rxc6 {[%emt 0:04:41]} 30. Bxc6 {[%emt 0:00:02]} Rxa2 {[%emt 0:00:10]} 31. b4 {
[%emt 0:00:19]} Rb2 {[%emt 0:01:05]} 32. b5 {[%emt 0:00:02]} Ne5 {[%emt 0:00:
34]} 33. Rc1 {[%emt 0:00:55]} Nf7 {[%emt 0:01:49]} 34. h3 {[%emt 0:00:36]} Kg7
{[%emt 0:02:44]} 35. Ra1 {[%emt 0:00:50]} Nd6 {[%emt 0:02:00]} 36. Ra6 {
[%emt 0:00:15]} Nxb5 {[%emt 0:00:27]} 37. Rxb6 {[%emt 0:00:08]} Rb1+ {[%emt 0:
00:03]} 38. Kh2 {[%emt 0:00:06]} Nc3 {[%emt 0:00:03]} 39. Rxb1 {[%emt 0:01:20]}
Nxb1 {[%emt 0:00:05]} 40. Kg3 {[%emt 0:00:43]} Kf6 {[%emt 0:00:20]} 41. Kf4 {
[%emt 0:01:56]} Na3 {[%emt 0:00:59]} 42. h4 {[%emt 0:01:17]} h6 {[%emt 0:00:20]
} 43. g4 {[%emt 0:05:49]} g5+ {[%emt 0:01:00]} 44. hxg5+ {[%emt 0:00:06]} hxg5+
{[%emt 0:00:04]} 45. Kg3 {[%emt 0:05:31]} f4+ {[%emt 0:00:10]} 46. Kf3 {
[%emt 0:00:42]} Nc4 {[%emt 0:00:07]} 0-1

[Event "23rd ETCC Women 2021"]
[Site "Catez"]
[Date "2021.11.19"]
[Round "6.24"]
[White "Sibajeva, Marija"]
[Black "Mrvova, Alena"]
[Result "0-1"]
[ECO "B31"]
[WhiteElo "1946"]
[BlackElo "2174"]
[Annotator "ChessBase"]
[PlyCount "120"]
[EventDate "2021.11.08"]
[EventType "team-tourn"]
[EventCountry "SLO"]
[WhiteTeam "Lithuania"]
[BlackTeam "Slovakia"]
[WhiteTeamCountry "LTU"]
[BlackTeamCountry "SVK"]
[TimeControl "40/5400+30:1800+30"]

1. e4 {[%emt 0:00:03]} c5 {[%emt 0:00:30]} 2. Nf3 {[%emt 0:00:03]} Nc6 {
[%emt 0:00:32]} 3. Bb5 {[%emt 0:00:08]} g6 {[%emt 0:00:34]} 4. O-O {[%emt 0:00:
09]} Bg7 {[%emt 0:00:18]} 5. Re1 {[%emt 0:00:13]} e5 {[%emt 0:00:51]} 6. c3 {
[%emt 0:00:45]} Nge7 {[%emt 0:01:25]} 7. d3 {[%emt 0:00:58]} O-O {[%emt 0:02:
04]} 8. Be3 {[%emt 0:01:04]} b6 {[%emt 0:01:21]} 9. d4 {[%emt 0:02:03]} cxd4 {
[%emt 0:03:48]} 10. cxd4 {[%emt 0:00:41]} exd4 {[%emt 0:00:15]} 11. Nxd4 {
[%emt 0:00:11]} Qc7 {[%emt 0:00:13]} 12. Nc3 {[%emt 0:00:41]} a6 {[%emt 0:12:
02]} 13. Ba4 {[%emt 0:04:05]} b5 {[%emt 0:01:37]} 14. Bb3 {[%emt 0:00:20]} Ne5
{[%emt 0:01:33]} 15. Rc1 {[%emt 0:04:02]} Nc4 {[%emt 0:05:03]} 16. Bxc4 {
[%emt 0:09:39]} bxc4 {[%emt 0:00:16]} 17. b3 {[%emt 0:01:19]} cxb3 {[%emt 0:05:
14]} 18. Nd5 {[%emt 0:00:43]} Qd8 {[%emt 0:00:49]} 19. Nxb3 {[%emt 0:05:17]}
Nxd5 {[%emt 0:08:49]} 20. Qxd5 {[%emt 0:00:08]} Rb8 {[%emt 0:00:07]} 21. Qd6 {
[%emt 0:08:11]} Bb7 {[%emt 0:04:35]} 22. Nc5 {[%emt 0:00:32]} Bc6 {[%emt 0:00:
06]} 23. Nxa6 {[%emt 0:10:04]} Ra8 {[%emt 0:00:54]} 24. Nb4 {[%emt 0:02:43]}
Bxe4 {[%emt 0:00:25]} 25. Rcd1 {[%emt 0:17:55]} Bf5 {[%emt 0:07:44]} 26. Bd4 {
[%emt 0:00:57]} Qb8 {[%emt 0:04:19]} 27. Bxg7 {[%emt 0:03:29]} Qxd6 {[%emt 0:
00:20]} 28. Rxd6 {[%emt 0:00:03]} Kxg7 {[%emt 0:00:05]} 29. Ra1 {[%emt 0:07:29]
} Rfb8 {[%emt 0:03:22]} 30. Ra6 {[%emt 0:01:50]} Rxa6 {[%emt 0:01:18]} 31. Nxa6
{[%emt 0:00:06]} Rb6 {[%emt 0:00:57]} 32. Nc5 {[%emt 0:00:45]} d6 {[%emt 0:00:
30]} 33. Nb3 {[%emt 0:00:28]} Be6 {[%emt 0:00:44]} 34. Nc1 {[%emt 0:00:49]} Bc4
{[%emt 0:00:38]} 35. f3 {[%emt 0:06:05]} d5 {[%emt 0:00:36]} 36. Nb3 {[%emt 0:
00:32]} Bxb3 {[%emt 0:00:11]} 37. Rb1 {[%emt 0:00:20]} Kf6 {[%emt 0:01:39]} 38.
Kf2 {[%emt 0:01:53]} Ke5 {[%emt 0:00:34]} 39. Ke3 {[%emt 0:02:01]} d4+ {
[%emt 0:00:45]} 40. Kd2 {[%emt 0:00:13]} Ra6 {[%emt 0:00:06]} 41. axb3 {
[%emt 0:30:27]} Ra2+ {[%emt 0:30:51]} 42. Kd3 {[%emt 0:00:10]} Rxg2 {[%emt 0:
00:18]} 43. b4 {[%emt 0:03:26]} Kd6 {[%emt 0:04:57]} 44. Ra1 {[%emt 0:00:00]}
Rxh2 {[%emt 0:00:00]} 45. Ra6+ {[%emt 0:00:00]} Kd5 {[%emt 0:00:00]} 46. Ra5+ {
[%emt 0:00:00]} Kc6 {[%emt 0:00:00]} 47. Ra6+ {[%emt 0:00:00]} Kb5 {[%emt 0:00:
00]} 48. Rf6 {[%emt 0:00:00]} Rh4 {[%emt 0:00:00]} 49. Rxf7 {[%emt 0:00:00]}
Kxb4 {[%emt 0:00:00]} 50. Rc7 {[%emt 0:00:00]} Kb5 {[%emt 0:00:00]} 51. Rc1 {
[%emt 0:00:00]} Rf4 {[%emt 0:00:00]} 52. Rh1 {[%emt 0:00:00]} Kc5 {[%emt 0:00:
00]} 53. Rh3 {[%emt 0:00:00]} Kd5 {[%emt 0:00:00]} 54. Rg3 {[%emt 0:00:00]} Ke5
{[%emt 0:00:00]} 55. Rg5+ {[%emt 0:00:00]} Kf6 {[%emt 0:00:00]} 56. Rg3 {
[%emt 0:00:00]} g5 {[%emt 0:00:00]} 57. Rh3 {[%emt 0:00:00]} Kg6 {[%emt 0:00:
00]} 58. Rg3 {[%emt 0:00:00]} h5 {[%emt 0:00:00]} 59. Rh3 {[%emt 0:00:00]} h4 {
[%emt 0:00:00]} 60. Kd2 {[%emt 0:00:00]} Kh5 {[%emt 0:00:00]} 0-1